[Event "Masters Tournament (MTO)"]
[Site "Biel, Switzerland"]
[Date "2026.07.23"]
[Round "10.25"]
[White "Aryan, Goyal"]
[Black "Rappazzo, Johannes"]
[Result "1/2-1/2"]
[TimeControl "100+30+30sec/move"]
[WhiteTitle "-"]
[BlackTitle "-"]
[WhiteFideId "366108825"]
[BlackFideId "1340069"]
[WhiteElo "2029"]
[BlackElo "2268"]

1. e4 {[%clk 01:40:35]} {[%emt 00:00:23]} c5 {[%clk 01:40:57]} {[%emt
00:00:04]} 2. Nf3 {[%clk 01:40:58]} {[%emt 00:00:07]} d6 {[%clk 01:41:24]}
{[%emt 00:00:03]} 3. d4 {[%clk 01:41:18]} {[%emt 00:00:11]} cxd4 {[%clk
01:41:50]} {[%emt 00:00:04]} 4. Nxd4 {[%clk 01:41:46]} {[%emt 00:00:01]} Nf6
{[%clk 01:42:12]} {[%emt 00:00:08]} 5. Nc3 {[%clk 01:42:12]} {[%emt 00:00:04]}
a6 {[%clk 01:42:40]} {[%emt 00:00:03]} 6. f4 {[%clk 01:42:06]} {[%emt
00:00:35]} e5 {[%clk 01:43:03]} {[%emt 00:00:07]} 7. Nb3 {[%clk 01:42:25]}
{[%emt 00:00:11]} Nc6 {[%clk 01:43:18]} {[%emt 00:00:15]} 8. f5 {[%clk
01:41:56]} {[%emt 00:00:59]} Be7 {[%clk 01:43:23]} {[%emt 00:00:25]} 9. Be3
{[%clk 01:37:23]} {[%emt 00:05:02]} a5 {[%clk 01:30:03]} {[%emt 00:13:51]} 10.
a3 {[%clk 01:20:49]} {[%emt 00:17:04]} a4 {[%clk 01:16:25]} {[%emt 00:14:09]}
11. Nc1 {[%clk 01:08:41]} {[%emt 00:12:37]} Qa5 {[%clk 01:08:24]} {[%emt
00:08:31]} 12. Qd2 {[%clk 01:04:45]} {[%emt 00:04:25]} O-O {[%clk 01:04:47]}
{[%emt 00:04:08]} 13. Be2 {[%clk 00:55:41]} {[%emt 00:09:34]} Nd4 {[%clk
00:49:03]} {[%emt 00:16:15]} 14. Bxd4 {[%clk 00:45:16]} {[%emt 00:10:55]} exd4
{[%clk 00:49:27]} {[%emt 00:00:05]} 15. Qxd4 {[%clk 00:45:12]} {[%emt
00:00:33]} Bd8 {[%clk 00:40:42]} {[%emt 00:09:16]} 16. Nd3 {[%clk 00:29:19]}
{[%emt 00:16:23]} Bb6 {[%clk 00:25:05]} {[%emt 00:16:07]} 17. Qb4 {[%clk
00:26:22]} {[%emt 00:03:27]} Bd7 {[%clk 00:23:07]} {[%emt 00:02:29]} 18. O-O-O
{[%clk 00:22:36]} {[%emt 00:04:15]} Rfe8 {[%clk 00:18:12]} {[%emt 00:05:26]} 19.
Bf3 {[%clk 00:22:01]} {[%emt 00:01:04]} Qa6 {[%clk 00:15:52]} {[%emt 00:02:51]}
20. Rhe1 {[%clk 00:18:58]} {[%emt 00:03:32]} Ba5 {[%clk 00:10:57]} {[%emt
00:05:25]} 21. Qd4 {[%clk 00:18:56]} {[%emt 00:00:32]} Bb6 {[%clk 00:11:10]}
{[%emt 00:00:17]} 22. Qb4 {[%clk 00:19:15]} {[%emt 00:00:11]} Rac8 {[%clk
00:03:38]} {[%emt 00:08:02]} 23. e5 {[%clk 00:14:15]} {[%emt 00:05:31]} dxe5
{[%clk 00:02:12]} {[%emt 00:01:56]} 24. Nxe5 {[%clk 00:14:08]} {[%emt
00:00:37]} Ba5 {[%clk 00:01:08]} {[%emt 00:01:34]} 25. Qxb7 {[%clk 00:12:03]}
{[%emt 00:02:35]} Qxb7 {[%clk 00:01:12]} {[%emt 00:00:26]} 26. Bxb7 {[%clk
00:12:30]} {[%emt 00:00:02]} Rc7 {[%clk 00:01:25]} {[%emt 00:00:18]} 27. Nxd7
{[%clk 00:10:59]} {[%emt 00:02:01]} Rxe1 {[%clk 00:01:46]} {[%emt 00:00:09]} 28.
Nxf6+ {[%clk 00:11:01]} {[%emt 00:00:27]} gxf6 {[%clk 00:02:11]} {[%emt
00:00:05]} 29. Rxe1 {[%clk 00:11:25]} {[%emt 00:00:07]} Bxc3 {[%clk 00:02:30]}
{[%emt 00:00:11]} 30. bxc3 {[%clk 00:08:17]} {[%emt 00:03:38]} Rxb7 {[%clk
00:02:55]} {[%emt 00:00:04]} 31. Re4 {[%clk 00:08:41]} {[%emt 00:00:05]} Ra7
{[%clk 00:03:04]} {[%emt 00:00:22]} 32. Kd2 {[%clk 00:08:48]} {[%emt 00:00:22]}
Ra5 {[%clk 00:03:31]} {[%emt 00:00:03]} 33. g4 {[%clk 00:09:09]} {[%emt
00:00:09]} Kg7 {[%clk 00:03:47]} {[%emt 00:00:14]} 34. Kd3 {[%clk 00:08:19]}
{[%emt 00:01:20]} h5 {[%clk 00:04:05]} {[%emt 00:00:13]} 35. h3 {[%clk
00:08:36]} {[%emt 00:00:13]} Kh6 {[%clk 00:04:29]} {[%emt 00:00:06]} 36. c4
{[%clk 00:08:34]} {[%emt 00:00:32]} Kg5 {[%clk 00:04:54]} {[%emt 00:00:05]} 37.
c5 {[%clk 00:08:05]} {[%emt 00:00:59]} Rxc5 {[%clk 00:05:20]} {[%emt 00:00:05]}
38. Rxa4 {[%clk 00:08:30]} {[%emt 00:00:05]} Kh4 {[%clk 00:05:39]} {[%emt
00:00:10]} 39. gxh5+ {[%clk 00:05:02]} {[%emt 00:03:59]} Kxh3 {[%clk 00:06:04]}
{[%emt 00:00:05]} 40. Rf4 {[%clk 00:04:09]} {[%emt 00:01:22]} Kg3 {[%clk
00:06:28]} {[%emt 00:00:06]} 41. Rf1 {[%clk 00:02:31]} {[%emt 00:02:08]} Kg2
{[%clk 00:06:54]} {[%emt 00:00:04]} 42. Rf4 {[%clk 00:30:04]} {[%emt 00:02:57]}
Kg3 {[%clk 00:37:18]} {[%emt 00:00:07]} 43. Rf1 {[%clk 00:28:46]} {[%emt
00:01:47]} Kg2 {[%clk 00:37:43]} {[%emt 00:00:05]} 44. Rf4 {[%clk 00:27:22]}
{[%emt 00:01:54]} Kg3 {[%emt 00:00:21]} 45. Ke4 {[%emt 00:00:02]} 1/2-1/2

[Event "Masters Tournament (MTO)"]
[Site "Biel, Switzerland"]
[Date "2026.07.23"]
[Round "10.26"]
[White "Udelnov, Valentin"]
[Black "Al Ibrahim, Abdulrahman"]
[Result "1-0"]
[TimeControl "100+30+30sec/move"]
[WhiteTitle "-"]
[BlackTitle "-"]
[WhiteFideId "16265734"]
[BlackFideId "10300503"]
[WhiteElo "2269"]
[BlackElo "2016"]

1. e4 {[%clk 01:40:57]} {[%emt 00:00:02]} c6 {[%clk 01:40:52]} {[%emt
00:00:08]} 2. d4 {[%clk 01:41:24]} {[%emt 00:00:04]} d5 {[%clk 01:41:17]}
{[%emt 00:00:05]} 3. e5 {[%clk 01:41:50]} {[%emt 00:00:03]} c5 {[%clk
01:41:40]} {[%emt 00:00:07]} 4. dxc5 {[%clk 01:42:16]} {[%emt 00:00:04]} e6
{[%clk 01:42:05]} {[%emt 00:00:05]} 5. a3 {[%clk 01:42:38]} {[%emt 00:00:09]}
Bxc5 {[%clk 01:42:08]} {[%emt 00:00:26]} 6. Qg4 {[%clk 01:42:58]} {[%emt
00:00:09]} Ne7 {[%clk 01:42:00]} {[%emt 00:00:39]} 7. Nf3 {[%clk 01:43:15]}
{[%emt 00:00:13]} O-O {[%clk 01:41:42]} {[%emt 00:00:49]} 8. Bd3 {[%clk
01:43:37]} {[%emt 00:00:07]} f5 {[%clk 01:35:09]} {[%emt 00:07:03]} 9. exf6
{[%clk 01:39:37]} {[%emt 00:04:31]} Rxf6 {[%clk 01:35:32]} {[%emt 00:00:07]} 10.
Qh5 {[%clk 01:39:54]} {[%emt 00:00:13]} h6 {[%clk 01:32:51]} {[%emt 00:03:11]}
11. O-O {[%clk 01:38:29]} {[%emt 00:01:55]} Bd6 {[%clk 01:29:50]} {[%emt
00:03:32]} 12. Bd2 {[%clk 01:35:01]} {[%emt 00:03:57]} Nbc6 {[%clk 01:21:53]}
{[%emt 00:08:27]} 13. Bc3 {[%clk 01:33:54]} {[%emt 00:01:37]} e5 {[%clk
01:21:14]} {[%emt 00:01:09]} 14. Nxe5 {[%clk 01:29:16]} {[%emt 00:05:08]} d4
{[%clk 01:21:16]} {[%emt 00:00:28]} 15. Nxc6 {[%clk 01:29:28]} {[%emt
00:00:18]} Nxc6 {[%clk 01:21:40]} {[%emt 00:00:06]} 16. Bb4 {[%clk 01:27:37]}
{[%emt 00:02:21]} Nxb4 {[%clk 01:12:26]} {[%emt 00:09:43]} 17. axb4 {[%clk
01:28:02]} {[%emt 00:00:07]} Bxb4 {[%clk 01:07:40]} {[%emt 00:05:16]} 18. Na3
{[%clk 01:22:44]} {[%emt 00:05:47]} Be6 {[%clk 00:53:44]} {[%emt 00:14:27]} 19.
Nb5 {[%clk 01:15:57]} {[%emt 00:07:17]} a6 {[%clk 00:53:07]} {[%emt 00:01:06]}
20. Ra4 {[%clk 01:16:17]} {[%emt 00:00:10]} a5 {[%clk 00:46:45]} {[%emt
00:06:53]} 21. Rd1 {[%clk 01:15:14]} {[%emt 00:01:32]} Qd7 {[%clk 00:38:14]}
{[%emt 00:09:02]} 22. Qe5 {[%clk 01:10:11]} {[%emt 00:05:33]} Raf8 {[%clk
00:38:24]} {[%emt 00:00:20]} 23. f3 {[%clk 00:59:18]} {[%emt 00:11:23]} b6
{[%clk 00:38:14]} {[%emt 00:00:40]} 24. Kh1 {[%clk 00:52:49]} {[%emt 00:06:58]}
Bc5 {[%clk 00:34:39]} {[%emt 00:04:05]} 25. b3 {[%clk 00:41:09]} {[%emt
00:12:11]} Re8 {[%clk 00:29:21]} {[%emt 00:05:47]} 26. Nc7 {[%clk 00:36:45]}
{[%emt 00:04:55]} Bd6 {[%clk 00:28:58]} {[%emt 00:00:52]} 27. Qxd6 {[%clk
00:37:07]} {[%emt 00:00:08]} Qxd6 {[%clk 00:29:08]} {[%emt 00:00:20]} 28. Nxe8
{[%clk 00:37:32]} {[%emt 00:00:05]} Qe5 {[%clk 00:18:52]} {[%emt 00:10:46]} 29.
Nxf6+ {[%clk 00:37:37]} {[%emt 00:00:26]} gxf6 {[%clk 00:19:04]} {[%emt
00:00:17]} 30. Rxd4 {[%clk 00:37:49]} {[%emt 00:00:18]} Kg7 {[%clk 00:17:59]}
{[%emt 00:01:35]} 31. Re4 {[%clk 00:37:27]} {[%emt 00:00:52]} Qd6 {[%clk
00:17:44]} {[%emt 00:00:44]} 32. Be2 {[%clk 00:16:00]} {[%emt 00:21:58]} Qc6
{[%clk 00:17:43]} {[%emt 00:00:31]} 33. c4 {[%clk 00:15:54]} {[%emt 00:00:36]}
Bf5 {[%clk 00:15:11]} {[%emt 00:03:01]} 34. Re7+ {[%clk 00:16:14]} {[%emt
00:00:11]} Kg6 {[%clk 00:15:34]} {[%emt 00:00:07]} 35. Rd5 {[%clk 00:13:08]}
{[%emt 00:03:36]} Bc2 {[%clk 00:11:05]} {[%emt 00:04:59]} 36. f4 {[%clk
00:12:02]} {[%emt 00:01:36]} f5 {[%clk 00:07:13]} {[%emt 00:04:22]} 37. Red7
{[%clk 00:12:05]} {[%emt 00:00:27]} 1-0

[Event "Masters Tournament (MTO)"]
[Site "Biel, Switzerland"]
[Date "2026.07.23"]
[Round "10.27"]
[White "Arndt, Uwe"]
[Black "Angst, Oliver"]
[Result "1-0"]
[TimeControl "100+30+30sec/move"]
[WhiteTitle "-"]
[BlackTitle "-"]
[WhiteFideId "24647713"]
[BlackFideId "1334069"]
[WhiteElo "2005"]
[BlackElo "2121"]

1. d4 {[%clk 01:40:57]} {[%emt 00:00:01]} d5 {[%clk 01:40:54]} {[%emt
00:00:06]} 2. c4 {[%clk 01:41:24]} {[%emt 00:00:05]} c6 {[%clk 01:41:18]}
{[%emt 00:00:07]} 3. cxd5 {[%clk 01:41:09]} {[%emt 00:00:44]} cxd5 {[%clk
01:41:40]} {[%emt 00:00:07]} 4. Nc3 {[%clk 01:41:33]} {[%emt 00:00:07]} Nf6
{[%clk 01:42:05]} {[%emt 00:00:05]} 5. Nf3 {[%clk 01:41:52]} {[%emt 00:00:11]}
Nc6 {[%clk 01:42:30]} {[%emt 00:00:05]} 6. Bf4 {[%clk 01:42:11]} {[%emt
00:00:11]} a6 {[%clk 01:42:43]} {[%emt 00:00:17]} 7. Rc1 {[%clk 01:42:27]}
{[%emt 00:00:13]} Bg4 {[%clk 01:41:44]} {[%emt 00:01:29]} 8. Ne5 {[%clk
01:42:43]} {[%emt 00:00:15]} Nxe5 {[%clk 01:41:57]} {[%emt 00:00:17]} 9. dxe5
{[%clk 01:39:41]} {[%emt 00:03:32]} d4 {[%clk 01:40:57]} {[%emt 00:01:30]} 10.
exf6 {[%clk 01:34:34]} {[%emt 00:05:37]} dxc3 {[%clk 01:37:31]} {[%emt
00:03:55]} 11. Qxd8+ {[%clk 01:32:44]} Rxd8 {[%clk 01:37:24]} {[%emt 00:02:58]}
12. Rxc3 {[%clk 01:28:06]} {[%emt 00:05:07]} exf6 {[%clk 01:31:10]} {[%emt
00:06:45]} 13. a3 {[%clk 01:23:44]} {[%emt 00:04:52]} g5 {[%clk 01:15:29]}
{[%emt 00:16:10]} 14. Bd2 {[%clk 01:19:12]} {[%emt 00:05:03]} Bd6 {[%clk
01:12:24]} {[%emt 00:03:34]} 15. Re3+ {[%clk 01:18:29]} {[%emt 00:01:13]} Be6
{[%clk 01:11:08]} {[%emt 00:01:46]} 16. Bc3 {[%clk 01:17:44]} {[%emt 00:01:16]}
Ke7 {[%clk 01:10:19]} {[%emt 00:01:18]} 17. g3 {[%clk 01:16:12]} {[%emt
00:02:02]} Bc5 {[%clk 00:25:18]} {[%emt 00:45:32]} 18. Rf3 {[%clk 01:08:02]}
{[%emt 00:08:40]} Bd4 {[%clk 00:13:42]} {[%emt 00:12:07]} 19. Bg2 {[%clk
01:07:02]} {[%emt 00:01:29]} Rd7 {[%clk 00:04:00]} {[%emt 00:10:12]} 20. Rd3
{[%clk 01:05:59]} {[%emt 00:01:33]} Bxc3+ {[%clk 00:03:39]} {[%emt 00:00:51]}
21. Rxc3 {[%clk 01:05:46]} {[%emt 00:00:42]} Rhd8 {[%clk 00:04:06]} {[%emt
00:00:04]} 22. O-O {[%clk 01:05:39]} {[%emt 00:00:37]} b5 {[%clk 00:01:13]}
{[%emt 00:03:23]} 23. Re1 {[%clk 01:02:09]} {[%emt 00:03:59]} Rd1 {[%clk
00:01:06]} {[%emt 00:00:38]} 24. Kf1 {[%clk 01:00:25]} {[%emt 00:02:14]} R8d2
{[%clk 00:00:41]} {[%emt 00:00:55]} 25. b4 {[%clk 00:59:32]} {[%emt 00:01:22]}
Bc4 {[%clk 00:00:34]} {[%emt 00:00:37]} 26. Re3+ {[%clk 00:58:22]} {[%emt
00:01:41]} Kf8 {[%clk 00:00:41]} {[%emt 00:00:23]} 27. Bb7 {[%clk 00:55:21]}
{[%emt 00:03:30]} f5 {[%clk 00:00:37]} {[%emt 00:00:35]} 28. f3 {[%clk
00:52:07]} {[%emt 00:03:44]} f4 {[%clk 00:00:36]} {[%emt 00:00:31]} 29. gxf4
{[%clk 00:52:26]} {[%emt 00:00:11]} gxf4 {[%clk 00:01:04]} {[%emt 00:00:02]} 30.
Re4 {[%clk 00:51:42]} {[%emt 00:01:13]} Rxe1+ {[%clk 00:00:58]} {[%emt
00:00:37]} 31. Kxe1 {[%clk 00:52:00]} {[%emt 00:00:12]} Ra2 {[%clk 00:01:09]}
{[%emt 00:00:18]} 32. Bxa6 {[%clk 00:50:11]} {[%emt 00:02:19]} Rxa3 {[%clk
00:01:33]} {[%emt 00:00:07]} 33. Bb7 {[%clk 00:48:12]} {[%emt 00:02:25]} Ra2
{[%clk 00:00:32]} {[%emt 00:01:35]} 34. Kf2 {[%clk 00:47:21]} {[%emt 00:01:15]}
Kg7 {[%clk 00:00:37]} {[%emt 00:00:30]} 35. Bc6 {[%clk 00:46:31]} {[%emt
00:01:20]} Rb2 {[%clk 00:00:45]} {[%emt 00:00:23]} 36. Bd7 {[%clk 00:45:14]}
{[%emt 00:01:46]} Kg6 {[%clk 00:00:33]} {[%emt 00:00:43]} 37. Be8 {[%clk
00:44:35]} {[%emt 00:01:06]} Kg5 {[%clk 00:00:31]} {[%emt 00:00:36]} 38. Bxb5
{[%clk 00:44:21]} {[%emt 00:00:43]} Be6 {[%clk 00:00:31]} {[%emt 00:00:30]} 39.
Bd3 {[%clk 00:43:28]} {[%emt 00:01:22]} Bh3 {[%clk 00:00:31]} {[%emt 00:00:32]}
40. b5 {[%clk 00:42:07]} {[%emt 00:01:50]} f6 {[%clk 00:00:58]} {[%emt
00:00:03]} 41. Re7 {[%clk 00:40:00]} {[%emt 00:02:37]} Bf5 {[%clk 00:24:08]}
{[%emt 00:07:20]} 42. Bxf5 {[%clk 01:09:26]} {[%emt 00:01:04]} Kxf5 {[%clk
00:24:32]} {[%emt 00:00:05]} 43. Rxh7 {[%clk 01:09:45]} {[%emt 00:00:11]} Rb1
{[%clk 00:18:17]} {[%emt 00:06:45]} 44. Rh5+ {[%clk 01:01:46]} {[%emt
00:08:28]} Kg6 {[%clk 00:15:01]} {[%emt 00:03:48]} 45. Rc5 {[%clk 01:00:46]}
{[%emt 00:01:30]} Rh1 {[%clk 00:15:25]} {[%emt 00:00:06]} 46. h4 {[%clk
00:57:31]} {[%emt 00:03:45]} Rxh4 {[%clk 00:10:46]} {[%emt 00:05:08]} 47. Kg2
{[%clk 00:57:56]} {[%emt 00:00:05]} Rh7 {[%clk 00:08:39]} {[%emt 00:02:37]} 48.
b6 {[%clk 00:58:20]} {[%emt 00:00:07]} Re7 {[%clk 00:08:13]} {[%emt 00:00:56]}
49. Kf2 {[%clk 00:58:15]} {[%emt 00:00:35]} Rb7 {[%clk 00:08:24]} {[%emt
00:00:19]} 50. Rb5 {[%clk 00:58:40]} {[%emt 00:00:05]} Kf7 {[%clk 00:08:40]}
{[%emt 00:00:14]} 51. Ke1 {[%clk 00:57:50]} {[%emt 00:01:20]} Ke6 {[%clk
00:08:52]} {[%emt 00:00:17]} 52. Kd2 {[%clk 00:57:58]} {[%emt 00:00:21]} Kd6
{[%clk 00:09:17]} {[%emt 00:00:06]} 53. Kd3 {[%clk 00:57:32]} {[%emt 00:00:57]}
Kc6 {[%clk 00:08:37]} {[%emt 00:01:09]} 54. Kc4 {[%clk 00:56:39]} {[%emt
00:01:22]} Kd6 {[%clk 00:08:42]} {[%emt 00:00:26]} 55. Rd5+ {[%clk 00:55:50]}
{[%emt 00:01:19]} Ke6 {[%clk 00:07:59]} {[%emt 00:01:14]} 56. Rb5 {[%clk
00:56:07]} {[%emt 00:00:12]} Kd6 {[%clk 00:08:19]} {[%emt 00:00:10]} 57. Kb4
{[%clk 00:55:57]} {[%emt 00:00:40]} Rb8 {[%clk 00:07:15]} {[%emt 00:01:35]} 58.
b7 {[%clk 00:55:12]} {[%emt 00:01:15]} Kc6 {[%clk 00:06:30]} {[%emt 00:01:15]}
59. Kc4 {[%clk 00:55:06]} {[%emt 00:00:35]} Kd6 {[%clk 00:04:35]} {[%emt
00:02:26]} 60. Rb6+ {[%clk 00:54:47]} {[%emt 00:00:48]} Kc7 {[%clk 00:04:44]}
{[%emt 00:00:22]} 61. Kc5 {[%clk 00:53:57]} {[%emt 00:01:19]} f5 {[%clk
00:04:12]} {[%emt 00:01:02]} 62. Kb5 {[%clk 00:51:04]} {[%emt 00:03:23]} 1-0